bitfinex/quotes_ETHUSD_20250720
["timestamp","ask_amount","ask_price","bid_price","bid_amount"]
[1753006970092,15.99,3697.1,3697.0,7.8512]
[1753006970390,15.99,3697.1,3697.0,7.8492]
[1753006970890,17.22,3697.1,3697.0,7.8492]
[1753006971274,17.22,3697.1,3697.0,3.6852]
[1753006971492,17.22,3697.1,3697.0,7.8492]
[1753006971954,18.45,3697.1,3697.0,7.2992]
[1753006972148,18.45,3697.1,3697.0,7.2982]
[1753006973053,18.45,3697.1,3697.0,3.1352]
[1753006973248,18.45,3697.1,3697.0,7.2982]
[1753006973447,19.68,3697.1,3697.0,7.2982]
[1753006973976,19.68,3697.1,3697.0,7.2962]
[1753006974781,20.91,3697.1,3697.0,7.2962]
[1753006976104,20.91,3697.1,3697.0,3.1352]
[1753006976307,22.14,3697.1,3697.0,7.2952]
[1753006976663,22.14,3697.1,3697.0,7.2942]
[1753006976865,22.5984,3697.1,3697.0,3.1352]
[1753006977098,4.29806107,3697.0,3696.5,0.14111103]
[1753006977298,2.70498855,3696.9,3696.7,3.0]
[1753006977496,0.4584,3696.9,3696.7,3.0]
[1753006977806,0.4407,3696.8,3696.5,0.14111103]
[1753006978109,0.4407,3696.8,3696.7,3.0]
[1753006978271,0.4407,3696.8,3696.5,0.14111103]
[1753006978473,1.23,3696.9,3696.7,3.0]
[1753006978771,1.23,3696.9,3696.8,4.161]
[1753006979166,2.9007,3696.9,3696.8,4.161]
[1753006979371,2.70504219,3696.8,3696.5,0.14111103]
[1753006979568,2.46,3696.9,3696.6,4.161]
[1753006979770,0.4407,3696.8,3696.5,0.14111103]
[1753006979976,5.16498713,3696.9,3696.7,4.16]
[1753006980210,5.16498713,3696.9,3696.8,4.16]
[1753006980414,2.46,3696.9,3696.8,4.159]
[1753006980585,4.1307,3696.9,3696.8,4.159]
[1753006981115,3.69,3696.9,3696.5,0.14111103]
[1753006981330,3.69,3696.9,3696.8,4.159]
[1753006982079,4.92,3696.9,3696.8,4.159]
[1753006982314,4.92,3696.9,3696.7,0.55]
[1753006982491,4.92,3696.9,3696.8,4.159]
[1753006982825,4.92,3696.9,3696.8,7.709]
[1753006983510,6.15,3696.9,3696.8,7.709]
[1753006984082,6.15,3696.9,3696.8,3.55]
[1753006984286,6.15,3696.9,3696.8,7.708]
[1753006984496,6.15,3696.9,3696.8,3.55]
[1753006984696,7.38,3696.9,3696.8,7.708]
[1753006985083,7.38,3696.9,3696.8,3.55]
[1753006985296,7.38,3696.9,3696.8,7.708]
[1753006986225,7.38,3696.9,3696.8,7.707]
[1753006986937,7.38,3696.9,3696.8,3.0]
[1753006987091,7.8207,3696.9,3696.8,7.2922]
[1753006987294,7.8207,3696.9,3696.8,7.2912]
[1753006987481,7.38,3696.9,3696.8,7.2912]
[1753006988257,7.8207,3696.9,3696.8,7.2912]
[1753006989330,7.8207,3696.9,3696.8,7.2902]
[1753006989997,7.38,3696.9,3696.8,7.8402]
[1753006990202,7.38,3696.9,3696.8,9.4964]
[1753006990402,7.38,3696.9,3696.8,7.8392]
[1753006991297,7.38,3696.9,3696.8,3.6852]
[1753006991503,7.38,3696.9,3696.8,7.8392]
[1753006991912,7.8207,3696.9,3696.8,7.2882]
[1753006992088,7.8207,3696.9,3696.8,3.1352]
[1753006992291,7.8207,3696.9,3696.8,7.2882]
[1753006993134,7.8207,3696.9,3696.8,3.1352]
[1753006993293,7.8207,3696.9,3696.8,7.2882]
[1753006994107,7.8207,3696.9,3696.8,3.1352]
[1753006994411,7.8207,3696.9,3696.8,7.2882]
[1753006994610,7.8207,3696.9,3696.8,3.1352]
[1753006994930,7.8207,3696.9,3696.8,7.2872]
[1753006995132,7.8207,3696.9,3696.8,3.1352]
[1753006995431,7.8207,3696.9,3696.8,7.2862]
[1753006996096,7.8207,3696.9,3696.8,3.1352]
[1753006996300,7.8207,3696.9,3696.8,7.2862]
[1753006996720,7.8207,3696.9,3696.8,0.1352]
[1753006996935,7.8207,3696.9,3696.8,4.2852]
[1753006998291,7.8207,3696.9,3696.8,0.1352]
[1753006998498,7.8207,3696.9,3696.8,4.2842]
[1753006999138,7.8207,3696.9,3696.8,0.1352]
[1753006999431,7.8207,3696.9,3696.8,4.2852]
[1753006999999,7.8207,3696.9,3696.8,4.2832]
[1753007001317,7.8207,3696.9,3696.8,0.1362]
[1753007001503,7.8207,3696.9,3696.8,4.2832]
[1753007002136,7.8207,3696.9,3696.8,0.1362]
[1753007002137,13.0032035,3696.9,3696.8,0.1362]
[1753007002345,13.0032035,3696.9,3696.8,4.2822]
[1753007002533,7.8207,3696.9,3696.8,4.2822]
[1753007003146,10.52566902,3696.9,3696.8,0.1362]
[1753007003351,7.8207,3696.9,3696.8,4.2822]
[1753007003765,10.52566902,3696.9,3696.8,4.2822]
[1753007004064,7.8207,3696.9,3696.8,4.2822]
[1753007004218,10.52566902,3696.9,3696.8,4.2822]
[1753007004418,7.8207,3696.9,3696.8,4.2822]
[1753007004653,10.52566902,3696.9,3696.8,4.2822]
[1753007005378,7.8207,3696.9,3696.8,4.2822]
[1753007006059,10.52566902,3696.9,3696.8,4.2822]
[1753007006558,7.8207,3696.9,3696.8,4.2822]
[1753007006758,10.52566902,3696.9,3696.8,4.2822]
[1753007007165,7.8207,3696.9,3696.8,4.2822]
[1753007007564,10.52566902,3696.9,3696.8,4.2822]
[1753007007965,7.8207,3696.9,3696.8,4.2822]
[1753007008457,10.52566902,3696.9,3696.8,4.2822]
[1753007008977,7.8207,3696.9,3696.8,4.2822]
[1753007009482,7.38,3696.9,3696.8,4.2772]
[1753007010365,7.8454,3696.9,3696.8,0.1362]
[1753007010526,7.8454,3696.9,3696.8,4.2772]
[1753007010725,7.8454,3696.9,3696.8,4.2762]
[1753007011169,7.8454,3696.9,3696.8,0.1362]
[1753007011363,13.3093322,3696.9,3696.8,0.1362]
[1753007011740,10.55036902,3696.9,3696.8,4.2752]
[1753007011940,7.8454,3696.9,3696.8,4.2752]
[1753007012153,7.8454,3696.9,3696.8,0.1362]
[1753007012460,7.8454,3696.9,3696.8,4.2752]
[1753007012662,7.38,3696.9,3696.8,4.2752]
[1753007013240,7.8454,3696.9,3696.8,4.2752]
[1753007013772,7.38,3696.9,3696.8,4.2752]
[1753007014270,7.38,3696.9,3696.8,4.2742]
[1753007016532,7.38,3696.9,3696.8,7.2742]
[1753007016832,7.38,3696.9,3696.8,7.8242]
[1753007017841,7.38,3696.9,3696.8,7.8222]
[1753007018979,7.38,3696.9,3696.8,9.4535]
[1753007019591,7.38,3696.9,3696.8,23.45612319]
[1753007019735,7.38,3696.9,3696.8,23.80146084]
[1753007019934,7.38,3696.9,3696.8,22.86590484]
[1753007020361,7.38,3696.9,3696.8,39.75680184]
[1753007020692,7.38,3696.9,3696.8,11.24177184]
[1753007020834,7.38,3696.9,3696.8,8.814544]
[1753007021034,7.38,3696.9,3696.8,0.001]
[1753007021035,7.8454,3696.9,3696.8,0.001]
[1753007021269,7.8454,3696.9,3696.8,4.141]
[1753007021470,7.38,3696.9,3696.8,4.141]
[1753007021640,7.38,3696.9,3696.8,0.551]
[1753007021847,7.38,3696.9,3696.8,9.3221]
[1753007023138,7.38,3696.9,3696.8,9.3233]
[1753007024152,7.38,3696.9,3696.8,23.25844519]
[1753007024440,7.38,3696.9,3696.8,30.14744519]
[1753007024968,7.38,3696.9,3696.8,21.78816719]
[1753007025156,7.38,3696.9,3696.8,17.55044219]
[1753007025365,7.38,3696.9,3696.8,20.58544219]
[1753007027710,7.38,3696.9,3696.8,45.08282119]
[1753007027855,7.38,3696.9,3696.8,38.41227819]
[1753007028054,7.38,3696.9,3696.8,30.9781088]
[1753007028281,7.38,3696.9,3696.8,29.9581088]
[1753007028488,7.38,3696.9,3696.8,30.9781088]
[1753007028685,7.38,3696.9,3696.8,9.8848388]
[1753007028922,7.38,3696.9,3696.8,20.34992319]
[1753007029222,7.38,3696.9,3696.8,23.34992319]
[1753007029748,7.38,3696.9,3696.8,18.49094219]
[1753007029949,7.38,3696.9,3696.8,28.38044819]
[1753007030245,7.38,3696.9,3696.8,35.61103619]
[1753007030440,7.38,3696.9,3696.8,35.74623619]
[1753007030668,7.38,3696.9,3696.8,35.88041087]
[1753007030867,7.38,3696.9,3696.8,37.39653934]
[1753007031044,7.38,3696.9,3696.8,37.59762779]
[1753007031261,7.38,3696.9,3696.8,35.28059779]
[1753007031852,7.38,3696.9,3696.8,35.41400579]
[1753007032284,7.38,3696.9,3696.8,28.32806179]
[1753007032787,7.38,3696.9,3696.8,36.97404879]
[1753007033290,7.38,3696.9,3696.8,35.87160379]
[1753007033963,7.38,3696.9,3696.8,37.45576779]
[1753007034165,7.38,3696.9,3696.8,38.47576779]
[1753007034394,7.38,3696.9,3696.8,37.45576779]
[1753007034986,7.38,3696.9,3696.8,36.65977179]
[1753007035176,16.50295564,3697.1,3697.0,4.79919586]
[1753007035382,16.50295564,3697.1,3697.0,30.69808486]
[1753007035700,16.50295564,3697.1,3697.0,30.83448486]
[1753007035902,16.50295564,3697.1,3697.0,34.09400186]
[1753007036266,16.50295564,3697.1,3697.0,32.76847086]
[1753007036500,16.50295564,3697.1,3697.0,31.74170286]
[1753007036900,16.50295564,3697.1,3697.0,35.21108786]
[1753007037400,16.50295564,3697.1,3697.0,34.94065186]
[1753007037970,9.84,3697.3,3697.2,3.25474954]
[1753007038201,0.002,3698.1,3698.0,7.86316441]
[1753007038380,0.002,3698.1,3698.0,20.14480041]
[1753007038709,0.002,3698.1,3698.0,20.09061041]
[1753007039373,0.002,3698.1,3698.0,20.09181041]
[1753007040007,0.002,3698.1,3698.0,24.91203241]
[1753007041104,0.002,3698.1,3698.0,22.84711241]
[1753007041414,0.002,3698.1,3698.0,18.27046041]
[1753007042117,0.002,3698.1,3698.0,22.51435641]
[1753007042494,0.002,3698.1,3698.0,23.53435641]
[1753007042903,1e-08,3698.1,3698.0,23.53435641]
[1753007043107,0.002,3698.5,3698.4,7.82287194]
[1753007043289,1e-08,3698.5,3698.4,24.21000894]
[1753007043495,1e-08,3698.5,3698.4,22.53168294]
[1753007043692,1e-08,3698.5,3698.4,26.67688294]
[1753007044215,1e-08,3698.5,3698.4,13.12247194]
[1753007044619,1e-08,3698.5,3698.4,31.85658394]
[1753007044785,1e-08,3698.5,3698.4,37.71690694]
[1753007045116,1e-08,3698.5,3698.4,36.48991694]
[1753007045302,0.002,3698.9,3698.8,3.25357953]
[1753007045625,0.002,3698.9,3698.8,34.18825553]
[1753007045934,0.002,3698.9,3698.8,29.17006853]
[1753007046223,0.002,3698.9,3698.8,19.60397953]
[1753007046581,0.002,3698.9,3698.8,33.52274653]
[1753007046582,1e-08,3698.9,3698.8,33.52274653]
[1753007046780,0.002,3699.6,3699.3,4.82221412]
[1753007047028,1e-08,3699.6,3699.5,3.25306798]
[1753007047258,0.002,3700.0,3699.7,6.25292185]
[1753007047396,0.002,3700.0,3699.9,3.25277575]
[1753007047603,0.002,3700.0,3699.9,38.1888345]
[1753007047828,1e-08,3700.1,3700.0,6.2527027]
[1753007048107,1e-08,3700.1,3700.0,32.2723237]
[1753007048302,1e-08,3700.1,3700.0,32.62165377]
[1753007048557,8.80053588,3700.8,3700.6,7.76556449]
[1753007048755,8.80053588,3700.8,3700.6,37.98643449]
[1753007049058,8.80053588,3700.8,3700.6,42.96599949]
[1753007049354,8.80053588,3700.8,3700.7,6.25219147]
[1753007049517,8.80053588,3700.8,3700.7,37.76669147]
[1753007049833,7.65002206,3700.8,3700.7,37.76669147]
[1753007050035,0.002,3701.1,3701.0,6.25197243]
[1753007050205,0.002,3701.1,3701.0,41.91327243]
[1753007050405,1e-08,3701.1,3701.0,42.04887243]
[1753007051252,1.23000001,3701.1,3701.0,42.04887243]
[1753007052108,17.3,3701.2,3701.1,6.25189943]
[1753007052304,1e-08,3701.2,3701.1,37.76639943]
[1753007052534,1e-08,3701.2,3701.1,38.13090375]
[1753007052737,1e-08,3701.2,3701.1,37.76639943]
[1753007053734,1e-08,3701.2,3701.1,7.76639943]
[1753007053935,1.23000001,3701.2,3701.1,38.78639943]
[1753007055171,1.23000001,3701.2,3701.1,10.33483043]
[1753007055308,2.46000001,3701.2,3701.1,14.47883043]
[1753007055509,2.46000001,3701.2,3701.1,15.02883043]
[1753007056054,2.46000001,3701.2,3701.1,28.57300343]
[1753007056234,2.46000001,3701.2,3701.1,27.66784943]
[1753007056748,3.69000001,3701.2,3701.1,26.64784943]
[1753007056951,3.69000001,3701.2,3701.1,29.35986843]
[1753007057610,3.69000001,3701.2,3701.1,28.64212343]
[1753007057809,3.69000001,3701.2,3701.1,24.28061543]
[1753007058019,4.92000001,3701.2,3701.1,24.28061543]
[1753007058232,4.92000001,3701.2,3701.1,19.18196943]
[1753007058714,4.92000001,3701.2,3701.1,23.32496943]
[1753007059047,4.92000001,3701.2,3701.1,26.43760443]
[1753007059548,6.15000001,3701.2,3701.1,26.43760443]
[1753007059916,6.15000001,3701.2,3701.1,23.53862043]
[1753007060132,6.15000001,3701.2,3701.1,19.39562043]
[1753007060323,6.15000001,3701.2,3701.1,23.53762043]
[1753007060532,6.15000001,3701.2,3701.1,23.67284721]
[1753007060733,6.15000001,3701.2,3701.1,23.67184721]
[1753007060953,7.38000001,3701.2,3701.1,12.04142621]
[1753007061139,0.002,3701.3,3701.1,12.04142621]
[1753007061140,1e-08,3701.3,3701.2,7.82072643]
[1753007061335,1e-08,3701.3,3701.2,37.82072643]
[1753007061660,1e-08,3701.3,3701.2,33.95818745]
[1753007061945,1e-08,3701.3,3701.2,33.95698745]
[1753007062243,1.23000001,3701.3,3701.2,35.78203145]
[1753007062458,1.23000001,3701.3,3701.2,26.32498745]
[1753007062613,1.23000001,3701.3,3701.2,26.32214606]
[1753007063125,1.23000001,3701.3,3701.2,33.35242006]
[1753007063325,1.23000001,3701.3,3701.2,30.93869706]
[1753007063836,1.23000001,3701.3,3701.2,27.06416706]
[1753007064036,2.46000001,3701.3,3701.2,8.08264706]
[1753007064227,2.46000001,3701.3,3701.2,28.21576306]
[1753007065250,2.46000001,3701.3,3701.2,25.32952306]
[1753007065459,3.69000001,3701.3,3701.2,25.20200243]
[1753007065615,3.69000001,3701.3,3701.2,25.46202939]
[1753007065815,0.002,3702.0,3701.5,6.25160745]
[1753007066157,1.23,3702.5,3702.4,6.25095073]
[1753007066327,1.23,3702.5,3702.4,48.21069873]
[1753007066530,1.23,3702.5,3702.4,48.55995073]
[1753007066725,2.46,3702.5,3702.4,48.55995073]
[1753007067243,2.46,3702.5,3702.4,18.56115073]
[1753007067447,1e-08,3702.5,3702.4,18.56115073]
[1753007067651,1e-08,3702.5,3702.4,48.56115073]
[1753007068218,49.202,3703.4,3702.6,7.88780483]
[1753007068415,1e-08,3702.7,3702.6,42.16220483]
[1753007068719,1e-08,3702.7,3702.6,41.58553983]
[1753007069119,1e-08,3702.7,3702.6,41.72649315]
[1753007069349,1e-08,3702.7,3702.6,41.58553983]
[1753007069552,0.25205819,3702.7,3702.6,42.16340483]
[1753007069817,0.25205819,3702.7,3702.6,25.60822448]
[1753007070031,0.25205819,3702.7,3702.6,25.44270983]
[1753007070259,0.25205819,3702.7,3702.6,25.30950983]
[1753007070465,49.202,3703.4,3703.2,1.637]
[1753007070756,49.06114877,3703.4,3703.3,37.91818233]
[1753007070947,50.29114877,3703.4,3703.3,35.83929433]
[1753007071523,50.29114877,3703.4,3703.3,10.40029433]
[1753007071721,50.29114877,3703.4,3703.3,40.40029433]
[1753007071950,50.29114877,3703.4,3703.3,39.22765233]
[1753007072147,50.29114877,3703.4,3703.3,20.52232133]
[1753007072368,51.52114877,3703.4,3703.3,24.67232133]
[1753007072574,51.52114877,3703.4,3703.3,6.25029433]
[1753007072756,51.52114877,3703.4,3703.3,8.300684]
[1753007072757,51.98144877,3703.4,3703.3,8.300684]
[1753007072953,51.98144877,3703.4,3703.3,9.448684]
[1753007073169,51.98144877,3703.4,3703.3,4.750684]
[1753007073443,51.98144877,3703.4,3703.3,4.699]
[1753007073767,53.21144877,3703.4,3703.3,4.149]
[1753007073966,53.21144877,3703.4,3703.3,10.625]
[1753007074180,53.21144877,3703.4,3703.3,10.708654]
[1753007074479,2.46,3704.1,3704.0,2.69978401]
[1753007074680,2.46,3704.1,3704.0,39.37908401]
[1753007074979,1.52069646,3704.1,3704.0,21.426564]
[1753007075183,1.98099646,3704.1,3704.0,10.58996]
[1753007075389,1.98099646,3704.1,3704.0,13.574903]
[1753007075682,1.98099646,3704.1,3704.0,9.391903]
[1753007075997,3.56871611,3704.1,3704.0,3.708]
[1753007076183,5.15891611,3704.1,3704.0,3.708]
[1753007076383,4.80119646,3704.1,3704.0,3.708]
[1753007076689,4.80119646,3704.1,3704.0,4.258]
[1753007076983,4.80119646,3704.1,3704.0,13.473303]
[1753007077155,4.80119646,3704.1,3704.0,10.402]
[1753007077361,4.80119646,3704.1,3704.0,4.736]
[1753007077556,4.80119646,3704.1,3703.5,0.55]
[1753007077759,0.4603,3704.0,3703.7,0.55]
[1753007078089,0.4603,3704.0,3703.9,3.55]
[1753007079050,0.4603,3704.0,3703.9,0.55]
[1753007079355,1.6903,3704.0,3703.9,4.734]
[1753007079865,1.6903,3704.0,3703.9,7.734]
[1753007080397,1.6903,3704.0,3703.9,7.8684]
[1753007080560,2.9203,3704.0,3703.9,7.8684]
[1753007081501,2.9203,3704.0,3703.9,14.3414]
[1753007082192,4.1503,3704.0,3703.9,14.3414]
[1753007082560,4.1503,3704.0,3703.9,10.1594]
[1753007082760,4.1503,3704.0,3703.9,14.3394]
[1753007083597,4.92,3704.0,3703.9,14.3394]
[1753007083964,5.3803,3704.0,3703.9,21.251088]
[1753007084158,5.3803,3704.0,3703.9,21.019088]
[1753007084364,5.3803,3704.0,3703.9,12.8864]
[1753007084567,5.3803,3704.0,3703.9,5.929098]
[1753007084794,5.3803,3704.0,3703.9,16.583098]
[1753007084996,6.6103,3704.0,3703.9,16.583098]
[1753007085197,6.6103,3704.0,3703.9,14.3384]
[1753007085401,8.2326,3704.0,3703.9,14.3384]
[1753007086595,9.4626,3704.0,3703.9,14.3384]
[1753007086978,9.4626,3704.0,3703.9,10.1594]
[1753007087358,9.4626,3704.0,3703.9,14.3364]
[1753007087898,10.6926,3704.0,3703.9,14.3364]
[1753007088085,10.6926,3704.0,3703.9,14.3354]
[1753007088604,15.6926,3704.0,3703.9,10.1594]
[1753007088902,15.6926,3704.0,3703.9,14.3354]
[1753007089097,16.9226,3704.0,3703.9,14.3354]
[1753007090480,18.1526,3704.0,3703.9,14.3354]
[1753007090782,18.1526,3704.0,3703.9,14.3324]
[1753007091292,18.1526,3704.0,3703.9,3.6844]
[1753007091488,18.1526,3704.0,3703.9,14.3324]
[1753007091826,19.19336095,3704.0,3703.9,6.6094]
[1753007092120,23.12314496,3704.0,3703.9,10.648]
[1753007092317,23.12314496,3704.0,3703.9,6.475]
[1753007092491,23.12314496,3704.0,3703.9,10.655]
[1753007092816,23.12314496,3704.0,3702.5,3.368]
[1753007092963,1.5215,3703.4,3702.6,6.475]
[1753007093163,1.5215,3703.2,3702.7,4.73]
[1753007093394,0.4603,3703.1,3702.7,4.73]
[1753007093905,1.5215,3703.0,3702.7,3.0]
[1753007094197,0.4603,3702.9,3702.6,6.475]
[1753007094398,0.31608487,3702.8,3702.7,4.18]
[1753007094604,0.77638487,3702.8,3702.7,4.18]
[1753007094899,2.00638487,3702.8,3702.7,4.18]
[1753007095104,3.52788487,3702.8,3702.7,4.18]
[1753007096089,2.00638487,3702.8,3702.7,4.179]
[1753007096294,3.23638487,3702.8,3702.7,4.179]
[1753007096604,4.4418,3702.8,3702.7,4.179]
[1753007097673,5.6718,3702.8,3702.7,4.179]
[1753007098887,6.9018,3702.8,3702.7,4.179]
[1753007099096,9.60245896,3702.8,3702.7,4.179]
[1753007099295,4.30023189,3702.7,3702.6,6.475]
[1753007099603,4.30023189,3702.7,3702.6,10.651]
[1753007099604,5.99403685,3702.7,3702.6,10.651]
[1753007100536,7.22403685,3702.7,3702.6,10.651]
[1753007101512,4.30074257,3702.0,3701.9,0.001]
[1753007101710,4.30074257,3702.0,3701.9,4.177]
[1753007102017,4.76424257,3702.0,3701.9,4.3114]
[1753007102177,5.46443264,3702.0,3701.9,4.3114]
[1753007103202,6.69443264,3702.0,3701.9,4.3114]
[1753007103412,5.99424257,3702.0,3701.9,4.3114]
[1753007103719,5.99424257,3702.0,3701.9,4.177]
[1753007103919,3.293,3702.0,3701.9,4.177]
[1753007104298,5.99424257,3702.0,3701.9,4.176]
[1753007104692,7.22424257,3702.0,3701.9,0.001]
[1753007105093,8.21677666,3702.0,3701.9,4.176]
[1753007106225,9.44677666,3702.0,3701.9,4.176]
[1753007106420,9.44677666,3702.0,3701.9,0.001]
[1753007106620,9.44677666,3702.0,3701.9,4.176]
[1753007106920,8.45424257,3702.0,3701.9,4.176]
[1753007107125,8.45424257,3702.0,3701.9,0.001]
[1753007107419,8.45424257,3702.0,3701.9,4.174]
[1753007107611,9.68424257,3702.0,3701.9,4.174]
[1753007109533,10.91424257,3702.0,3701.9,4.174]
[1753007110415,10.91424257,3702.0,3701.9,0.001]
[1753007110749,10.91424257,3702.0,3701.9,4.171]
[1753007111045,12.14424257,3702.0,3701.9,4.171]
[1753007111648,12.14424257,3702.0,3701.9,4.17]
[1753007112324,13.37424257,3702.0,3701.9,4.17]
[1753007113748,14.60424257,3702.0,3701.9,4.17]
[1753007114449,14.60424257,3702.0,3701.9,0.001]
[1753007114651,14.60424257,3702.0,3701.9,4.167]
[1753007115050,15.83424257,3702.0,3701.9,4.167]
[1753007116314,17.06424257,3702.0,3701.9,4.167]
[1753007116759,19.05421666,3702.0,3701.9,0.001]
[1753007116959,19.05421666,3702.0,3701.6,0.1344]
[1753007116960,4.31905343,3701.3,3701.2,6.479]
[1753007117165,4.78255343,3701.3,3701.2,10.647]
[1753007117658,6.01255343,3701.3,3701.2,10.647]
[1753007118035,2.70189943,3701.1,3701.0,0.1344]
[1753007118237,2.70189943,3701.1,3701.0,4.3014]
[1753007118416,3.16539943,3701.1,3701.0,4.3014]
[1753007119624,4.39539943,3701.1,3701.0,4.3014]
[1753007120360,4.39539943,3701.1,3701.0,0.1344]
[1753007120737,5.38984472,3701.1,3701.0,4.2994]
[1753007121070,5.62539943,3701.1,3701.0,4.2994]
[1753007122448,3.69,3701.1,3701.0,4.2994]
[1753007123239,3.69,3701.1,3701.0,4.2984]
[1753007123956,4.92,3701.1,3701.0,4.2984]
[1753007124124,4.92,3701.1,3701.0,0.1344]
[1753007124331,4.92,3701.1,3701.0,4.2984]
[1753007125272,6.15,3701.1,3701.0,4.2984]
[1753007126632,7.38,3701.1,3701.0,4.2984]
[1753007127268,7.38,3701.1,3701.0,7.2984]
[1753007127449,7.38,3701.1,3701.0,7.7259]
[1753007127969,8.61,3701.1,3701.0,7.7259]
[1753007128937,8.61,3701.1,3701.0,7.7269]
[1753007129351,9.84,3701.1,3701.0,7.7269]
[1753007130638,11.07,3701.1,3701.0,7.7269]
[1753007131968,12.3,3701.1,3701.0,7.7269]
[1753007132536,12.3,3701.1,3701.0,7.2994]
[1753007133071,12.3,3701.1,3701.0,8.8559]
[1753007133245,13.53,3701.1,3701.0,8.8559]
[1753007134737,14.76,3701.1,3701.0,8.8559]
[1753007136039,15.99,3701.1,3701.0,9.2939]
[1753007137344,17.22,3701.1,3701.0,9.2939]
[1753007138175,17.22,3701.1,3701.0,9.8439]
[1753007138759,18.45,3701.1,3701.0,9.8439]
[1753007139976,18.45,3701.1,3701.0,30.825308]
[1753007140178,19.68,3701.1,3701.0,29.937182]
[1753007140958,19.68,3701.1,3701.0,30.869252]
[1753007141555,20.91,3701.1,3701.0,14.952906]
[1753007142149,20.91,3701.1,3701.0,18.045729]
[1753007142968,22.14,3701.1,3701.0,18.045729]
[1753007143280,22.14,3701.1,3701.0,24.27456]
[1753007143604,22.14,3701.1,3701.0,22.77456]
[1753007144091,22.14,3701.1,3701.0,9.8439]
[1753007144377,23.37,3701.1,3701.0,9.8439]
[1753007144954,23.37,3701.1,3701.0,39.8439]
[1753007145472,23.37,3701.1,3701.0,30.968366]
[1753007145674,24.6,3701.1,3701.0,30.968366]
[1753007146250,24.6,3701.1,3701.0,39.8439]
[1753007146653,24.6,3701.1,3701.0,39.168235]
[1753007146986,24.6,3701.1,3701.0,20.688637]
[1753007147160,24.6,3701.1,3701.0,36.659895]
[1753007147161,25.83,3701.1,3701.0,36.659895]
[1753007147370,25.83,3701.1,3701.0,29.649895]
[1753007148166,25.83,3701.1,3701.0,38.426454]
[1753007148594,27.06,3701.1,3701.0,38.426454]
[1753007149109,27.06,3701.1,3701.0,38.075697]
[1753007149268,27.06,3701.1,3701.0,10.8639]
[1753007149684,27.06,3701.1,3701.0,35.875697]
[1753007149898,28.29,3701.1,3701.0,36.166582]
[1753007150266,28.29,3701.1,3701.0,40.8639]
[1753007150765,28.29,3701.1,3701.0,40.8449]
[1753007150965,28.29,3701.1,3701.0,41.2554209]
[1753007151396,29.52,3701.1,3701.0,41.2554209]
[1753007151964,29.52,3701.1,3701.0,43.95739333]
[1753007152798,30.75,3701.1,3701.0,43.95739333]
[1753007153374,30.75,3701.1,3701.0,13.95739333]
[1753007153774,29.73,3701.1,3701.0,51.52346941]
[1753007154102,30.96,3701.1,3701.0,52.33365241]
[1753007156005,32.19,3701.1,3701.0,52.33365241]
[1753007157076,33.42,3701.1,3701.0,52.33365241]
[1753007158631,34.65,3701.1,3701.0,52.33365241]
[1753007158967,34.1,3701.1,3701.0,52.33365241]
[1753007159174,33.95942358,3701.1,3701.0,52.33365241]
[1753007159369,32.94172477,3701.1,3701.0,52.33365241]
[1753007159585,32.94172477,3701.1,3701.0,52.32965241]
[1753007159775,32.94172477,3701.1,3701.0,51.51946941]
[1753007159980,34.17172477,3701.1,3701.0,51.51946941]
[1753007160498,34.17172477,3701.1,3701.0,47.37846941]
[1753007160698,34.17172477,3701.1,3701.0,17.37846941]
[1753007160901,34.17172477,3701.1,3701.0,46.0399]
[1753007161101,34.17172477,3701.1,3701.0,17.886159]
[1753007161281,35.40172477,3701.1,3701.0,20.886159]
[1753007161927,35.40172477,3701.1,3701.0,16.02537243]
[1753007162282,35.40172477,3701.1,3701.0,46.02537243]
[1753007162479,35.40172477,3701.1,3701.0,49.02537243]
[1753007162783,36.63172477,3701.1,3701.0,49.85111791]
[1753007163115,36.63172477,3701.1,3701.0,49.98559137]
[1753007163628,36.63172477,3701.1,3701.0,50.18793473]
[1753007163995,37.86172477,3701.1,3701.0,50.18793473]
[1753007165418,39.09172477,3701.1,3701.0,50.18793473]
[1753007166714,39.09172477,3701.1,3701.0,58.05793473]
[1753007166902,40.32172477,3701.1,3701.0,58.05793473]
[1753007168592,28.47418199,3701.1,3701.0,61.20378623]
[1753007168898,12.3,3702.0,3701.9,7.75911554]
[1753007169097,12.3,3702.0,3701.9,49.77111554]
[1753007169305,12.3,3702.0,3701.9,50.36501554]
[1753007170313,12.3,3702.0,3701.9,47.88279254]
[1753007170498,12.3,3702.0,3701.9,47.88379254]
[1753007171321,13.53,3702.0,3701.9,48.77697854]
[1753007172240,13.53,3702.0,3701.9,50.36501554]
[1753007172734,13.53,3702.0,3701.9,50.44595488]
[1753007172922,14.76,3702.0,3701.9,50.44595488]
[1753007173325,14.76,3702.0,3701.9,42.57595488]
[1753007174232,14.76,3702.0,3701.9,12.57595488]
[1753007174401,15.99,3702.0,3701.9,12.99117946]
[1753007174608,15.99,3702.0,3701.9,42.99117946]
[1753007174940,15.99,3702.0,3701.9,42.98917946]
[1753007175808,17.22,3702.0,3701.9,42.98917946]
[1753007177349,17.22,3702.0,3701.9,43.12272956]
[1753007177535,18.45,3702.0,3701.9,43.12272956]
[1753007178829,19.68,3702.0,3701.9,43.11972956]
[1753007179932,19.68,3702.0,3701.9,43.03779022]
[1753007180320,20.91,3702.0,3701.9,43.03779022]
[1753007181438,20.91,3702.0,3701.9,8.90179022]
[1753007181649,22.14,3702.0,3701.9,13.44731112]